[Event "Early-Titled-Tuesday-Blitz-April-16-2024"]
[Site "Chess.com"]
[Date "2024.04.16"]
[Round "10"]
[White "Smoking_Crow"]
[Black "VerdeNotte"]
[Result "0-1"]
[WhiteElo "2680"]
[BlackElo "2884"]
[TimeControl "180+1"]
[EndTime "9:57:01 PDT"]
[Termination "VerdeNotte won by checkmate"]

1. e4 {[%clk 0:03:00.9]} 1... c6 {[%clk 0:02:27.4]} 2. d4 {[%clk 0:02:58.7]}
2... g6 {[%clk 0:02:26.3]} 3. Nc3 {[%clk 0:02:58.5]} 3... Bg7 {[%clk 0:02:25.4]}
4. f4 {[%clk 0:02:58.7]} 4... d5 {[%clk 0:02:24.9]} 5. e5 {[%clk 0:02:58.8]}
5... h5 {[%clk 0:02:23]} 6. Nf3 {[%clk 0:02:59.3]} 6... Bg4 {[%clk 0:02:22.6]}
7. h3 {[%clk 0:02:58.6]} 7... Bxf3 {[%clk 0:02:22.7]} 8. Qxf3 {[%clk 0:02:59.5]}
8... e6 {[%clk 0:02:23.2]} 9. Bd3 {[%clk 0:02:59.5]} 9... h4 {[%clk 0:02:20.3]}
10. Be3 {[%clk 0:02:59.3]} 10... Nh6 {[%clk 0:02:15.7]} 11. O-O {[%clk
0:02:59.2]} 11... Bf8 {[%clk 0:02:13.9]} 12. Ne2 {[%clk 0:02:58.1]} 12... Nd7
{[%clk 0:02:09.5]} 13. b3 {[%clk 0:02:57.7]} 13... Nf5 {[%clk 0:02:05.4]} 14.
Bf2 {[%clk 0:02:57.5]} 14... a5 {[%clk 0:02:00.5]} 15. c4 {[%clk 0:02:57.4]}
15... a4 {[%clk 0:01:57.5]} 16. c5 {[%clk 0:02:56.6]} 16... axb3 {[%clk
0:01:49.8]} 17. axb3 {[%clk 0:02:57.5]} 17... Be7 {[%clk 0:01:48.8]} 18. b4
{[%clk 0:02:55.8]} 18... Kf8 {[%clk 0:01:48.2]} 19. b5 {[%clk 0:02:53]} 19...
Kg7 {[%clk 0:01:43.2]} 20. Bxf5 {[%clk 0:02:45.3]} 20... gxf5 {[%clk 0:01:42.3]}
21. b6 {[%clk 0:02:45.7]} 21... Qb8 {[%clk 0:01:32.4]} 22. Ra3 {[%clk
0:02:42.4]} 22... Rxa3 {[%clk 0:01:27]} 23. Qxa3 {[%clk 0:02:43.3]} 23... Nxb6
{[%clk 0:01:26.6]} 24. Qb3 {[%clk 0:02:43.6]} 24... Nc4 {[%clk 0:01:25.1]} 25.
Ra1 {[%clk 0:02:39.7]} 25... b6 {[%clk 0:01:21.1]} 26. cxb6 {[%clk 0:02:37.5]}
26... Qxb6 {[%clk 0:01:20.8]} 27. Qxb6 {[%clk 0:02:35.7]} 27... Nxb6 {[%clk
0:01:21]} 28. Rc1 {[%clk 0:02:34.7]} 28... Nc4 {[%clk 0:01:20.2]} 29. Kh1 {[%clk
0:02:30]} 29... Ra8 {[%clk 0:01:16.9]} 30. Ng1 {[%clk 0:02:29.2]} 30... Ra2
{[%clk 0:01:15.7]} 31. Be1 {[%clk 0:02:26.4]} 31... Ne3 {[%clk 0:01:13.6]} 32.
Rxc6 {[%clk 0:02:24.1]} 32... Nxg2 {[%clk 0:01:11.5]} 33. Bc3 {[%clk 0:02:23.9]}
33... Nxf4 {[%clk 0:01:08.9]} 34. Rc7 {[%clk 0:02:23.8]} 34... Bg5 {[%clk
0:01:00.6]} 35. Nf3 {[%clk 0:02:22.1]} 35... Nxh3 {[%clk 0:01:00.2]} 36. Bb4
{[%clk 0:02:16.8]} 36... Rf2 {[%clk 0:00:52.4]} 37. Nxg5 {[%clk 0:02:13.5]}
37... Nxg5 {[%clk 0:00:52]} 38. Be7 {[%clk 0:02:13.2]} 38... Nf3 {[%clk
0:00:51.6]} 39. Rc1 {[%clk 0:02:12.5]} 39... Rh2# {[%clk 0:00:50.8]} 0-1

[Event "Early-Titled-Tuesday-Blitz-April-16-2024"]
[Site "Chess.com"]
[Date "2024.04.16"]
[Round "10"]
[White "ContrVersia"]
[Black "FREDERICKtheMATE"]
[Result "0-1"]
[WhiteElo "2876"]
[BlackElo "2711"]
[TimeControl "180+1"]
[EndTime "9:57:18 PDT"]
[Termination "FREDERICKtheMATE won on time"]

1. Nf3 {[%clk 0:02:57.4]} 1... Nf6 {[%clk 0:02:59.5]} 2. c4 {[%clk 0:02:57]}
2... c6 {[%clk 0:02:58.5]} 3. g3 {[%clk 0:02:55.5]} 3... d5 {[%clk 0:02:59]} 4.
Bg2 {[%clk 0:02:55.7]} 4... Bf5 {[%clk 0:02:56.9]} 5. Qb3 {[%clk 0:02:55.2]}
5... Qc8 {[%clk 0:02:54.1]} 6. cxd5 {[%clk 0:02:50.2]} 6... cxd5 {[%clk
0:02:54.2]} 7. Nc3 {[%clk 0:02:49]} 7... e6 {[%clk 0:02:53.7]} 8. O-O {[%clk
0:02:47.1]} 8... Nc6 {[%clk 0:02:52.9]} 9. d3 {[%clk 0:02:47.2]} 9... Be7 {[%clk
0:02:49.3]} 10. Bf4 {[%clk 0:02:26.3]} 10... O-O {[%clk 0:02:47.9]} 11. Rac1
{[%clk 0:02:25.1]} 11... Qd7 {[%clk 0:02:43.3]} 12. Rfd1 {[%clk 0:02:03.6]}
12... Bg6 {[%clk 0:02:33.4]} 13. e4 {[%clk 0:02:02.4]} 13... d4 {[%clk
0:02:33.3]} 14. Na4 {[%clk 0:01:59.3]} 14... Na5 {[%clk 0:02:22.9]} 15. Ne5
{[%clk 0:00:46.7]} 15... Nxb3 {[%clk 0:02:08.7]} 16. Nxd7 {[%clk 0:00:47]} 16...
Nxc1 {[%clk 0:02:08.5]} 17. Nxf6+ {[%clk 0:00:43.3]} 17... gxf6 {[%clk
0:02:05.9]} 18. Rxc1 {[%clk 0:00:38.7]} 18... Rfc8 {[%clk 0:02:04.6]} 19. b3
{[%clk 0:00:02.6]} 19... Ba3 {[%clk 0:01:58.2]} 20. Rc4 {[%clk 0:00:01.4]} 20...
b5 {[%clk 0:01:57.6]} 0-1

[Event "Early-Titled-Tuesday-Blitz-April-16-2024"]
[Site "Chess.com"]
[Date "2024.04.16"]
[Round "10"]
[White "AryanTari"]
[Black "KubaGepard"]
[Result "1-0"]
[WhiteElo "2903"]
[BlackElo "2580"]
[TimeControl "180+1"]
[EndTime "9:57:33 PDT"]
[Termination "AryanTari won by resignation"]

1. a3 {[%clk 0:03:00.9]} 1... a6 {[%clk 0:02:58.9]} 2. h4 {[%clk 0:03:00.8]}
2... h5 {[%clk 0:02:56.6]} 3. Rh3 {[%clk 0:03:00]} 3... Nf6 {[%clk 0:02:55.9]}
4. d4 {[%clk 0:03:00]} 4... d6 {[%clk 0:02:55.8]} 5. Rh1 {[%clk 0:02:59.9]} 5...
Nc6 {[%clk 0:02:52.6]} 6. Nc3 {[%clk 0:02:59.8]} 6... e5 {[%clk 0:02:52.4]} 7.
d5 {[%clk 0:02:59]} 7... Ne7 {[%clk 0:02:52.1]} 8. e4 {[%clk 0:02:59.1]} 8...
Ng6 {[%clk 0:02:51.5]} 9. Bg5 {[%clk 0:02:59.1]} 9... Be7 {[%clk 0:02:51.6]} 10.
Bd3 {[%clk 0:02:58.9]} 10... Ng4 {[%clk 0:02:49.9]} 11. Nf3 {[%clk 0:02:41.2]}
11... Bxg5 {[%clk 0:02:44.7]} 12. hxg5 {[%clk 0:02:41.6]} 12... h4 {[%clk
0:02:41.3]} 13. Qd2 {[%clk 0:02:38.2]} 13... Bd7 {[%clk 0:02:36.1]} 14. O-O-O
{[%clk 0:02:37.6]} 14... Qe7 {[%clk 0:02:35.5]} 15. Ng1 {[%clk 0:02:10]} 15...
Nf4 {[%clk 0:02:06.9]} 16. f3 {[%clk 0:02:05.4]} 16... Qxg5 {[%clk 0:02:06.2]}
17. fxg4 {[%clk 0:02:04.2]} 17... Qxg4 {[%clk 0:02:01.6]} 18. Nh3 {[%clk
0:01:48.9]} 18... Qxg2 {[%clk 0:01:52.4]} 19. Nxf4 {[%clk 0:01:42.9]} 19...
Qxd2+ {[%clk 0:01:51.8]} 20. Kxd2 {[%clk 0:01:43.8]} 20... exf4 {[%clk
0:01:52.1]} 21. Rdg1 {[%clk 0:01:44.4]} 21... Kf8 {[%clk 0:01:49.2]} 22. Ne2
{[%clk 0:01:42]} 22... f3 {[%clk 0:01:37.8]} 23. Nd4 {[%clk 0:01:41.1]} 23... f2
{[%clk 0:01:33.3]} 24. Rf1 {[%clk 0:01:41.3]} 24... g5 {[%clk 0:01:31.8]} 25.
Rxf2 {[%clk 0:01:39.2]} 25... g4 {[%clk 0:01:32]} 26. Rhf1 {[%clk 0:00:50.5]}
26... Rh7 {[%clk 0:01:24.5]} 27. e5 {[%clk 0:00:50.3]} 27... g3 {[%clk
0:01:18.4]} 28. Bxh7 {[%clk 0:00:45.9]} 28... gxf2 {[%clk 0:01:18.4]} 29. e6
{[%clk 0:00:46.2]} 1-0

[Event "Early-Titled-Tuesday-Blitz-April-16-2024"]
[Site "Chess.com"]
[Date "2024.04.16"]
[Round "10"]
[White "ansko1999"]
[Black "NigiriSushies"]
[Result "0-1"]
[WhiteElo "2607"]
[BlackElo "2441"]
[TimeControl "180+1"]
[EndTime "9:57:49 PDT"]
[Termination "NigiriSushies won by resignation"]

1. a3 {[%clk 0:03:00.9]} 1... g6 {[%clk 0:02:57.8]} 2. c4 {[%clk 0:02:59.8]}
2... Bg7 {[%clk 0:02:57.3]} 3. Nc3 {[%clk 0:03:00.4]} 3... e6 {[%clk 0:02:55.8]}
4. d4 {[%clk 0:02:58.7]} 4... Ne7 {[%clk 0:02:56]} 5. h4 {[%clk 0:02:53.3]} 5...
c5 {[%clk 0:02:55.2]} 6. d5 {[%clk 0:02:51.5]} 6... exd5 {[%clk 0:02:38]} 7.
cxd5 {[%clk 0:02:52.4]} 7... b5 {[%clk 0:02:33.6]} 8. Nxb5 {[%clk 0:02:41.6]}
8... Qa5+ {[%clk 0:02:29.8]} 9. Nc3 {[%clk 0:02:41.2]} 9... Bxc3+ {[%clk
0:02:28.6]} 10. bxc3 {[%clk 0:02:42.1]} 10... Qxc3+ {[%clk 0:02:29.2]} 11. Bd2
{[%clk 0:02:42.2]} 11... Qd4 {[%clk 0:02:29.5]} 12. Nf3 {[%clk 0:02:13.1]} 12...
Qxd5 {[%clk 0:02:26.8]} 13. Bc3 {[%clk 0:02:10.1]} 13... O-O {[%clk 0:02:22]}
14. Qc1 {[%clk 0:02:01.9]} 14... Nbc6 {[%clk 0:02:17.5]} 15. h5 {[%clk
0:01:50.6]} 15... d6 {[%clk 0:01:57.5]} 16. hxg6 {[%clk 0:01:32.9]} 16... fxg6
{[%clk 0:01:55.7]} 17. Qh6 {[%clk 0:01:32.1]} 17... Rf7 {[%clk 0:01:54.7]} 18.
Ng5 {[%clk 0:01:27.7]} 18... Nf5 {[%clk 0:01:51.3]} 19. e4 {[%clk 0:01:13.2]}
19... Qb3 {[%clk 0:01:41.3]} 20. Qh3 {[%clk 0:01:09.3]} 20... Nfd4 {[%clk
0:01:30.2]} 21. Qd3 {[%clk 0:00:43.1]} 21... Ne5 {[%clk 0:01:17.5]} 22. Qd2
{[%clk 0:00:20.7]} 22... Nc2+ {[%clk 0:01:17.1]} 23. Ke2 {[%clk 0:00:20.4]}
23... Ba6+ {[%clk 0:01:16.9]} 0-1

[Event "Early-Titled-Tuesday-Blitz-April-16-2024"]
[Site "Chess.com"]
[Date "2024.04.16"]
[Round "10"]
[White "Yushko_Olga"]
[Black "Fernando_Offermann"]
[Result "1-0"]
[WhiteElo "2286"]
[BlackElo "2433"]
[TimeControl "180+1"]
[EndTime "9:57:50 PDT"]
[Termination "Yushko_Olga won by resignation"]

1. d4 {[%clk 0:03:00.1]} 1... Nf6 {[%clk 0:02:59.5]} 2. c4 {[%clk 0:02:59.6]}
2... g6 {[%clk 0:02:59.7]} 3. Nc3 {[%clk 0:02:58.3]} 3... Bg7 {[%clk 0:02:59.8]}
4. Bg5 {[%clk 0:02:56.8]} 4... h6 {[%clk 0:02:58.4]} 5. Bh4 {[%clk 0:02:56.8]}
5... d6 {[%clk 0:02:58.7]} 6. e3 {[%clk 0:02:55.5]} 6... c5 {[%clk 0:02:58.1]}
7. dxc5 {[%clk 0:02:50.6]} 7... Qa5 {[%clk 0:02:57.6]} 8. cxd6 {[%clk
0:02:47.1]} 8... Ne4 {[%clk 0:02:54.9]} 9. Ne2 {[%clk 0:02:43.2]} 9... Nxd6
{[%clk 0:02:54.5]} 10. a3 {[%clk 0:02:33.6]} 10... Nxc4 {[%clk 0:02:50.7]} 11.
Qd5 {[%clk 0:02:29.3]} 11... Qxd5 {[%clk 0:02:39.4]} 12. Nxd5 {[%clk 0:02:29.3]}
12... Na6 {[%clk 0:02:32.9]} 13. Nd4 {[%clk 0:02:26.8]} 13... e6 {[%clk
0:02:27.7]} 14. Bxc4 {[%clk 0:02:26.4]} 14... exd5 {[%clk 0:02:27.3]} 15. Bxd5
{[%clk 0:02:24.2]} 15... O-O {[%clk 0:02:26]} 16. O-O {[%clk 0:02:19.7]} 16...
g5 {[%clk 0:02:22.3]} 17. Bg3 {[%clk 0:02:19.1]} 17... Rd8 {[%clk 0:02:22.9]}
18. Bf3 {[%clk 0:02:14.8]} 18... Nc5 {[%clk 0:02:19.6]} 19. Rfd1 {[%clk
0:02:14.2]} 19... a5 {[%clk 0:02:08.7]} 20. Rac1 {[%clk 0:02:12.1]} 20... Ne6
{[%clk 0:02:04.1]} 21. Nf5 {[%clk 0:02:09.8]} 21... Rxd1+ {[%clk 0:02:01.5]} 22.
Rxd1 {[%clk 0:02:09.7]} 22... Bxb2 {[%clk 0:02:01.6]} 23. Bd6 {[%clk 0:02:01.3]}
23... Kh7 {[%clk 0:01:56.1]} 24. Be4 {[%clk 0:01:59]} 24... Ng7 {[%clk 0:01:51]}
25. Ne7+ {[%clk 0:01:59.2]} 25... f5 {[%clk 0:01:51]} 26. Bc2 {[%clk 0:01:54.8]}
26... Be6 {[%clk 0:01:44]} 27. g4 {[%clk 0:01:51.6]} 27... Bf6 {[%clk 0:01:30]}
28. gxf5 {[%clk 0:01:48.4]} 28... Bf7 {[%clk 0:01:29.3]} 29. Bc5 {[%clk
0:01:37.5]} 29... Be8 {[%clk 0:01:16.4]} 30. Nd5 {[%clk 0:01:33]} 30... Nh5
{[%clk 0:01:11.8]} 31. Nxf6+ {[%clk 0:01:33.1]} 31... Nxf6 {[%clk 0:01:11.5]}
32. Be7 {[%clk 0:01:25.7]} 32... Kg7 {[%clk 0:01:11]} 33. Rd6 {[%clk 0:01:21.9]}
33... Ng8 {[%clk 0:01:02]} 34. f6+ {[%clk 0:01:19.3]} 34... Kf7 {[%clk
0:01:02.4]} 35. Bb3+ {[%clk 0:01:15.9]} 35... Kg6 {[%clk 0:01:01.2]} 36. f7+
{[%clk 0:01:13]} 1-0

[Event "Early-Titled-Tuesday-Blitz-April-16-2024"]
[Site "Chess.com"]
[Date "2024.04.16"]
[Round "10"]
[White "kritipatel"]
[Black "esrosenberg"]
[Result "1-0"]
[WhiteElo "2188"]
[BlackElo "2347"]
[TimeControl "180+1"]
[EndTime "9:57:56 PDT"]
[Termination "kritipatel won by resignation"]

1. e4 {[%clk 0:03:00.9]} 1... e5 {[%clk 0:02:57.6]} 2. Nf3 {[%clk 0:03:00.2]}
2... Nc6 {[%clk 0:02:56.5]} 3. Bc4 {[%clk 0:03:00.8]} 3... Nf6 {[%clk
0:02:53.9]} 4. d3 {[%clk 0:03:01.2]} 4... a6 {[%clk 0:02:51.6]} 5. c3 {[%clk
0:03:01]} 5... h6 {[%clk 0:02:50.6]} 6. Nbd2 {[%clk 0:03:01.3]} 6... Bc5 {[%clk
0:02:47.4]} 7. h3 {[%clk 0:03:01.1]} 7... d6 {[%clk 0:02:46]} 8. Nf1 {[%clk
0:03:01.5]} 8... O-O {[%clk 0:02:40.1]} 9. Ng3 {[%clk 0:03:00.5]} 9... d5 {[%clk
0:02:37]} 10. exd5 {[%clk 0:02:51.1]} 10... Nxd5 {[%clk 0:02:37.9]} 11. O-O
{[%clk 0:02:47.8]} 11... Be6 {[%clk 0:02:35.2]} 12. Bb3 {[%clk 0:02:47]} 12...
Qd7 {[%clk 0:02:31.6]} 13. Re1 {[%clk 0:02:44.8]} 13... Rad8 {[%clk 0:02:29.8]}
14. Nxe5 {[%clk 0:02:34.3]} 14... Nxe5 {[%clk 0:02:30.7]} 15. Rxe5 {[%clk
0:02:34.5]} 15... Bxh3 {[%clk 0:02:26.9]} 16. Rxd5 {[%clk 0:02:12.6]} 16... Bd6
{[%clk 0:02:17.4]} 17. gxh3 {[%clk 0:01:59.7]} 17... Qxh3 {[%clk 0:02:18.3]} 18.
Qh5 {[%clk 0:01:45.1]} 18... Qe6 {[%clk 0:02:18]} 19. Bd2 {[%clk 0:01:11.6]}
19... c6 {[%clk 0:02:01.8]} 20. Rd4 {[%clk 0:01:04.9]} 20... Qf6 {[%clk
0:01:58.6]} 21. Qf5 {[%clk 0:00:53.5]} 21... Qe7 {[%clk 0:01:35.6]} 22. Re1
{[%clk 0:00:53.2]} 22... Qc7 {[%clk 0:01:35.7]} 23. Rg4 {[%clk 0:00:51.2]} 23...
Kh8 {[%clk 0:01:30.5]} 24. Bxh6 {[%clk 0:00:48.7]} 24... f6 {[%clk 0:01:20.1]}
25. Bxg7+ {[%clk 0:00:46]} 25... Qxg7 {[%clk 0:01:21]} 26. Rxg7 {[%clk
0:00:45.4]} 26... Kxg7 {[%clk 0:01:21.9]} 27. Nh5+ {[%clk 0:00:40.1]} 27... Kh6
{[%clk 0:01:22]} 28. Nxf6 {[%clk 0:00:31.6]} 28... Rg8+ {[%clk 0:01:22.9]} 29.
Nxg8+ {[%clk 0:00:31.5]} 29... Rxg8+ {[%clk 0:01:23.8]} 30. Bxg8 {[%clk
0:00:31.4]} 30... Bh2+ {[%clk 0:01:24.6]} 31. Kxh2 {[%clk 0:00:31.2]} 31... Kg7
{[%clk 0:01:24.9]} 32. Qf7+ {[%clk 0:00:29.9]} 32... Kh6 {[%clk 0:01:24.6]} 33.
Re6+ {[%clk 0:00:30.3]} 33... Kg5 {[%clk 0:01:24.3]} 34. Qg6+ {[%clk 0:00:29.9]}
1-0

[Event "Early-Titled-Tuesday-Blitz-April-16-2024"]
[Site "Chess.com"]
[Date "2024.04.16"]
[Round "10"]
[White "Seochesspie"]
[Black "Martial2008"]
[Result "1-0"]
[WhiteElo "2868"]
[BlackElo "2668"]
[TimeControl "180+1"]
[EndTime "9:58:00 PDT"]
[Termination "Seochesspie won by resignation"]

1. Nf3 {[%clk 0:03:00.9]} 1... Nf6 {[%clk 0:02:55.5]} 2. c4 {[%clk 0:03:01.1]}
2... e6 {[%clk 0:02:54.5]} 3. b3 {[%clk 0:03:01.2]} 3... d5 {[%clk 0:02:53.8]}
4. Bb2 {[%clk 0:03:01.5]} 4... c5 {[%clk 0:02:54.5]} 5. e3 {[%clk 0:03:01.4]}
5... Nc6 {[%clk 0:02:55.2]} 6. cxd5 {[%clk 0:03:00.7]} 6... exd5 {[%clk
0:02:55.3]} 7. Bb5 {[%clk 0:03:00.5]} 7... Bd6 {[%clk 0:02:52.2]} 8. O-O {[%clk
0:02:59.2]} 8... O-O {[%clk 0:02:44.7]} 9. Bxc6 {[%clk 0:02:59.2]} 9... bxc6
{[%clk 0:02:44.9]} 10. d3 {[%clk 0:02:59.7]} 10... Bg4 {[%clk 0:02:43.3]} 11.
Nbd2 {[%clk 0:02:58.6]} 11... Qd7 {[%clk 0:02:43.4]} 12. Qc2 {[%clk 0:02:51.1]}
12... Qf5 {[%clk 0:02:41]} 13. Rac1 {[%clk 0:02:45]} 13... Qg6 {[%clk
0:02:39.7]} 14. Kh1 {[%clk 0:02:42.9]} 14... Bf5 {[%clk 0:02:38.2]} 15. Nh4
{[%clk 0:02:30.2]} 15... Qh6 {[%clk 0:02:38.2]} 16. Bxf6 {[%clk 0:02:22.6]}
16... Qxf6 {[%clk 0:02:26.6]} 17. Nxf5 {[%clk 0:02:22.5]} 17... Qxf5 {[%clk
0:02:27.5]} 18. Nf3 {[%clk 0:02:21]} 18... Qd7 {[%clk 0:02:20.6]} 19. Rfe1
{[%clk 0:02:16.5]} 19... a5 {[%clk 0:02:18.6]} 20. a4 {[%clk 0:02:11.9]} 20...
Rab8 {[%clk 0:02:17.7]} 21. d4 {[%clk 0:02:12.2]} 21... cxd4 {[%clk 0:02:06.9]}
22. Nxd4 {[%clk 0:02:12.5]} 22... c5 {[%clk 0:01:43.2]} 23. Nb5 {[%clk
0:02:12.6]} 23... Be7 {[%clk 0:01:43.6]} 24. Red1 {[%clk 0:02:12.5]} 24... Rfd8
{[%clk 0:01:39.7]} 25. Qd3 {[%clk 0:02:12.2]} 25... Qe6 {[%clk 0:01:36.4]} 26.
Nc7 {[%clk 0:02:07.5]} 26... Qe4 {[%clk 0:01:09.7]} 27. Nxd5 {[%clk 0:01:57]}
27... Qxd3 {[%clk 0:01:08.4]} 28. Rxd3 {[%clk 0:01:56.9]} 28... Kf8 {[%clk
0:01:09]} 29. Kg1 {[%clk 0:01:49.3]} 29... f5 {[%clk 0:01:07.7]} 30. Kf1 {[%clk
0:01:49]} 30... Kf7 {[%clk 0:01:08]} 31. Ke2 {[%clk 0:01:49]} 31... Rb7 {[%clk
0:01:06]} 32. Nxe7 {[%clk 0:01:40.9]} 32... Rxd3 {[%clk 0:01:05.2]} 33. Kxd3
{[%clk 0:01:41.5]} 33... Rxb3+ {[%clk 0:01:04.4]} 34. Kc2 {[%clk 0:01:31.1]}
34... Rb4 {[%clk 0:00:56.7]} 35. Nxf5 {[%clk 0:01:28.9]} 35... Rxa4 {[%clk
0:00:55.6]} 36. Kb3 {[%clk 0:01:26.9]} 36... Rb4+ {[%clk 0:00:55.7]} 37. Ka3
{[%clk 0:01:27.1]} 37... Kf6 {[%clk 0:00:48.4]} 38. Rxc5 {[%clk 0:01:26]} 38...
Rb1 {[%clk 0:00:47.3]} 39. Rxa5 {[%clk 0:01:23.8]} 39... Rf1 {[%clk 0:00:47.5]}
40. Ng3 {[%clk 0:01:21.3]} 40... Ke6 {[%clk 0:00:44.6]} 41. Nxf1 {[%clk
0:01:20.8]} 1-0

[Event "Early-Titled-Tuesday-Blitz-April-16-2024"]
[Site "Chess.com"]
[Date "2024.04.16"]
[Round "10"]
[White "Chesstiger64"]
[Black "NowInChess"]
[Result "0-1"]
[WhiteElo "2361"]
[BlackElo "2251"]
[TimeControl "180+1"]
[EndTime "9:58:02 PDT"]
[Termination "NowInChess won by resignation"]

1. Nf3 {[%clk 0:03:00.9]} 1... Nf6 {[%clk 0:02:59.5]} 2. g3 {[%clk 0:03:01]}
2... g6 {[%clk 0:02:59.6]} 3. Bg2 {[%clk 0:03:01.6]} 3... Bg7 {[%clk 0:03:00.2]}
4. O-O {[%clk 0:03:01.8]} 4... O-O {[%clk 0:03:00.8]} 5. c4 {[%clk 0:03:02.3]}
5... d6 {[%clk 0:03:01.1]} 6. Nc3 {[%clk 0:03:01.1]} 6... e5 {[%clk 0:03:01.5]}
7. d3 {[%clk 0:03:01.5]} 7... Nc6 {[%clk 0:03:01]} 8. Rb1 {[%clk 0:03:02.1]}
8... a5 {[%clk 0:02:59.6]} 9. b3 {[%clk 0:03:02]} 9... h6 {[%clk 0:02:53.5]} 10.
Bb2 {[%clk 0:03:01.9]} 10... Be6 {[%clk 0:02:53.5]} 11. Qc2 {[%clk 0:02:53.2]}
11... Qd7 {[%clk 0:02:50.6]} 12. Rfe1 {[%clk 0:02:51]} 12... Bh3 {[%clk
0:02:50.2]} 13. Nb5 {[%clk 0:02:49.5]} 13... Bxg2 {[%clk 0:02:46.1]} 14. Kxg2
{[%clk 0:02:50.4]} 14... Nh5 {[%clk 0:02:37.3]} 15. d4 {[%clk 0:02:45.7]} 15...
f5 {[%clk 0:02:12.9]} 16. dxe5 {[%clk 0:02:44.4]} 16... dxe5 {[%clk 0:02:12.3]}
17. Rbd1 {[%clk 0:02:40.4]} 17... Qf7 {[%clk 0:02:00.8]} 18. Rd2 {[%clk
0:01:53]} 18... Rae8 {[%clk 0:01:45.5]} 19. Red1 {[%clk 0:01:50.9]} 19... Re7
{[%clk 0:01:45.4]} 20. Ba3 {[%clk 0:01:40.7]} 20... Nb4 {[%clk 0:01:41.1]} 21.
Bxb4 {[%clk 0:01:41.2]} 21... axb4 {[%clk 0:01:40.9]} 22. Rd8 {[%clk 0:01:41.6]}
22... e4 {[%clk 0:01:30.4]} 23. Rxf8+ {[%clk 0:01:38.4]} 23... Qxf8 {[%clk
0:01:27.3]} 24. Nh4 {[%clk 0:01:35.4]} 24... Kh7 {[%clk 0:01:19.4]} 25. f4
{[%clk 0:01:21.9]} 25... g5 {[%clk 0:01:06.6]} 26. Rd5 {[%clk 0:01:11]} 26...
gxh4 {[%clk 0:01:01.2]} 27. g4 {[%clk 0:01:08]} 27... Nxf4+ {[%clk 0:01:00]} 28.
Kf2 {[%clk 0:01:07.7]} 28... Nxd5 {[%clk 0:00:55.5]} 29. cxd5 {[%clk 0:01:07.9]}
29... fxg4+ {[%clk 0:00:55.4]} 30. Ke3 {[%clk 0:01:08.2]} 30... h5 {[%clk
0:00:45.4]} 31. Nxc7 {[%clk 0:01:07.8]} 31... Bh6+ {[%clk 0:00:42.2]} 32. Kd4
{[%clk 0:01:08.1]} 32... Qg7+ {[%clk 0:00:41.1]} 33. Kc5 {[%clk 0:01:06.5]}
33... Rxc7+ {[%clk 0:00:41]} 34. Kxb4 {[%clk 0:01:06.8]} 34... Rxc2 {[%clk
0:00:41.3]} 0-1

[Event "Early-Titled-Tuesday-Blitz-April-16-2024"]
[Site "Chess.com"]
[Date "2024.04.16"]
[Round "10"]
[White "HansOnTwitch"]
[Black "wonderfultime"]
[Result "1-0"]
[WhiteElo "3158"]
[BlackElo "3002"]
[TimeControl "180+1"]
[EndTime "9:58:04 PDT"]
[Termination "HansOnTwitch won by resignation"]

1. e4 {[%clk 0:03:00.9]} 1... e5 {[%clk 0:02:59.4]} 2. Nf3 {[%clk 0:03:00.9]}
2... Nc6 {[%clk 0:02:59.6]} 3. Bc4 {[%clk 0:03:01.5]} 3... Bc5 {[%clk
0:02:59.4]} 4. d3 {[%clk 0:03:01.8]} 4... d6 {[%clk 0:02:56.5]} 5. O-O {[%clk
0:03:01.5]} 5... Nf6 {[%clk 0:02:56.6]} 6. c3 {[%clk 0:03:01.2]} 6... a6 {[%clk
0:02:56.5]} 7. Re1 {[%clk 0:03:00.2]} 7... Ba7 {[%clk 0:02:55]} 8. Nbd2 {[%clk
0:03:00.5]} 8... Ng4 {[%clk 0:02:48.4]} 9. Re2 {[%clk 0:03:00.1]} 9... O-O
{[%clk 0:02:48.8]} 10. h3 {[%clk 0:02:59]} 10... Nh6 {[%clk 0:02:47.2]} 11. Nf1
{[%clk 0:02:58.9]} 11... Kh8 {[%clk 0:02:47.8]} 12. Bg5 {[%clk 0:02:50.4]} 12...
Ne7 {[%clk 0:02:08.2]} 13. d4 {[%clk 0:02:45.2]} 13... f6 {[%clk 0:01:50.2]} 14.
Bxh6 {[%clk 0:02:44.4]} 14... gxh6 {[%clk 0:01:51.1]} 15. Qd2 {[%clk 0:02:44.7]}
15... b5 {[%clk 0:01:43.8]} 16. Bb3 {[%clk 0:02:44]} 16... c5 {[%clk 0:01:44.2]}
17. Qxh6 {[%clk 0:02:37.8]} 17... c4 {[%clk 0:01:37]} 18. Bc2 {[%clk 0:02:37.7]}
18... Ng6 {[%clk 0:01:37.3]} 19. g3 {[%clk 0:02:32.6]} 19... Qe7 {[%clk
0:01:27.9]} 20. Ne3 {[%clk 0:02:30.4]} 20... Rg8 {[%clk 0:01:28.1]} 21. Kh2
{[%clk 0:02:29.5]} 21... Be6 {[%clk 0:01:28]} 22. Nf5 {[%clk 0:02:28.9]} 22...
Qd7 {[%clk 0:01:21.6]} 23. Rd1 {[%clk 0:02:28.5]} 23... Qc7 {[%clk 0:01:05.9]}
24. Red2 {[%clk 0:02:26]} 24... Raf8 {[%clk 0:01:01]} 25. h4 {[%clk 0:01:55.4]}
25... Bxf5 {[%clk 0:00:52.7]} 26. exf5 {[%clk 0:01:55.3]} 26... Ne7 {[%clk
0:00:53.6]} 27. dxe5 {[%clk 0:01:49.2]} 27... dxe5 {[%clk 0:00:54.5]} 28. Be4
{[%clk 0:01:45.3]} 28... Rg7 {[%clk 0:00:47.1]} 29. Rd7 {[%clk 0:01:41.2]} 29...
Qc5 {[%clk 0:00:47.3]} 30. R1d2 {[%clk 0:01:40.9]} 30... Bb6 {[%clk 0:00:42.4]}
31. Ng5 {[%clk 0:01:29.6]} 31... fxg5 {[%clk 0:00:14.6]} 32. f6 {[%clk
0:01:29.9]} 32... Rgf7 {[%clk 0:00:15.2]} 33. Rxe7 {[%clk 0:01:30.3]} 1-0